fUSD/lending_fUSD_20260203
["ID","MTS","AMOUNT","RATE_DAILY","PERIOD"]
[404416904,1770121844407,-500.0,0.00017,7]
[404416905,1770121844416,-500.0,0.00017,7]
[404416906,1770121844426,-500.0,0.00017,7]
[404416907,1770121844434,-500.0,0.00017,7]
[404416908,1770121844443,-500.0,0.00017,7]
[404416909,1770121844452,-500.0,0.00017,7]
[404416910,1770121844462,-500.0,0.00017,7]
[404416911,1770121844471,-500.0,0.00017,7]
[404416912,1770121844480,-500.0,0.00017,7]
[404416913,1770121844489,-500.0,0.00017,7]
[404416914,1770121844500,-500.0,0.00017,7]
[404416915,1770121844509,-500.0,0.00017,7]
[404416916,1770121844518,-500.0,0.00017,7]
[404416917,1770121844528,-500.0,0.00017,7]
[404416918,1770121844537,-500.0,0.00017,7]
[404416919,1770121844546,-500.0,0.00017,7]
[404416920,1770121844555,-500.0,0.00017,7]
[404416921,1770121844564,-500.0,0.00017,7]
[404416922,1770121844574,-500.0,0.00017,7]
[404416923,1770121844583,-500.0,0.00017,7]
[404416924,1770121844592,-500.0,0.00017,7]
[404416925,1770121844601,-500.0,0.00017,7]
[404416926,1770121844610,-500.0,0.00017,7]
[404416927,1770121844620,-500.0,0.00017,7]
[404416928,1770121844630,-500.0,0.00017,7]
[404416929,1770121844639,-500.0,0.00017,7]
[404416930,1770121844649,-500.0,0.00017,7]
[404416931,1770121844658,-500.0,0.00017,7]
[404416932,1770121844668,-500.0,0.00017,7]
[404416933,1770121844682,-500.0,0.00017,7]
[404416934,1770121844691,-500.0,0.00017,7]
[404416935,1770121844700,-500.0,0.00017,7]
[404416936,1770121844709,-500.0,0.00017,7]
[404416937,1770121844720,-500.0,0.00017,7]
[404416938,1770121844729,-500.0,0.00017,7]
[404416939,1770121844738,-500.0,0.00017,7]
[404416940,1770121844748,-500.0,0.00017,7]
[404416941,1770121844757,-500.0,0.00017,7]
[404416942,1770121844766,-500.0,0.00017,7]
[404416943,1770121844776,-500.0,0.00017,7]
[404416944,1770121844785,-500.0,0.00017,7]
[404416945,1770121844794,-500.0,0.00017,7]
[404416946,1770121844803,-500.0,0.00017,7]
[404416947,1770121844812,-500.0,0.00017,7]
[404416948,1770121844820,-500.0,0.00017,7]
[404416949,1770121844830,-500.0,0.00017,7]
[404416950,1770121844839,-500.0,0.00017,7]
[404416951,1770121844848,-500.0,0.00017,7]
[404416952,1770121844857,-500.0,0.00017,7]
[404416953,1770121844866,-500.0,0.00017,7]
[404416954,1770121844876,-500.0,0.00017,7]
[404416955,1770121844885,-500.0,0.00017,7]
[404416956,1770121844895,-500.0,0.00017,7]
[404416957,1770121844904,-500.0,0.00017,7]
[404416958,1770121844913,-500.0,0.00017,7]
[404416959,1770121844922,-500.0,0.00017,7]
[404416960,1770121844932,-500.0,0.00017,7]
[404416961,1770121844941,-500.0,0.00017,7]
[404416962,1770121844950,-500.0,0.00017,7]
[404416963,1770121844960,-500.0,0.00017,7]
[404416964,1770121844969,-500.0,0.00017,7]
[404416965,1770121844979,-500.0,0.00017,7]
[404416966,1770121844988,-500.0,0.00017,7]
[404416967,1770121844997,-500.0,0.00017,7]
[404416968,1770121845006,-500.0,0.00017,7]
[404416969,1770121845015,-500.0,0.00017,7]
[404416970,1770121845025,-500.0,0.00017,7]
[404416971,1770121845034,-500.0,0.00017,7]
[404416972,1770121845043,-500.0,0.00017,7]
[404416974,1770121845052,-500.0,0.00017,7]
[404416976,1770121845061,-404.8,0.00017,7]
[404416978,1770121845071,-500.0,0.00017,7]
[404416980,1770121845080,-500.0,0.00017,7]
[404416981,1770121845089,-500.0,0.00017,7]
[404416982,1770121845098,-500.0,0.00017,7]
[404416984,1770121845107,-500.0,0.00017,7]
[404416985,1770121845117,-500.0,0.00017,7]
[404416986,1770121845125,-500.0,0.00017,7]
[404416987,1770121845135,-500.0,0.00017,7]
[404416988,1770121845144,-500.0,0.00017,7]
[404416989,1770121845154,-500.0,0.00017,7]
[404416990,1770121845163,-500.0,0.00017,7]
[404416991,1770121845172,-500.0,0.00017,7]
[404416992,1770121845181,-500.0,0.00017,7]
[404416993,1770121845190,-500.0,0.00017,7]
[404416994,1770121845200,-500.0,0.00017,7]
[404416995,1770121845209,-500.0,0.00017,7]
[404416996,1770121845218,-500.0,0.00017,7]
[404416997,1770121845227,-500.0,0.00017,7]
[404416998,1770121845236,-500.0,0.00017,7]
[404416999,1770121845246,-500.0,0.00017,7]
[404417000,1770121845255,-500.0,0.00017,7]
[404417001,1770121845264,-500.0,0.00017,7]
[404417002,1770121845274,-500.0,0.00017,7]
[404417003,1770121845283,-500.0,0.00017,7]
[404417004,1770121845293,-166.51,0.00017,7]
[404417005,1770121845302,-500.0,0.00017,7]
[404417006,1770121845311,-160.0,0.00017,7]
[404417007,1770121845320,-575900.12355035,0.00017,2]
[404417008,1770121845329,-160.0,0.00017,2]
[404417009,1770121845338,-256.5,0.00017009,2]
[404417010,1770121845348,-1265.13779333,0.00017014,2]
[404417011,1770121845356,-1265.13779333,0.00017068,2]
[404417012,1770121845365,-500.0,0.00017099,2]
[404417013,1770121845375,-1000.0,0.00017112,2]
[404417014,1770121845384,-1265.13779333,0.00017151,2]
[404417015,1770121845394,-1265.13779333,0.00017205,2]
[404417016,1770121845403,-1500.0,0.0001726,7]
[404417017,1770121845414,-177.18689156,0.0001726,2]
[404417018,1770121845423,-1000.0,0.0001726,2]
[404417019,1770121845432,-1265.13779333,0.00017288,2]
[404417020,1770121845442,-2258.0,0.0001729,2]
[404417021,1770121845455,-1265.13779333,0.00017342,2]
[404417022,1770121845464,-1271.0,0.00017373,2]
[404417023,1770121845474,-150.0,0.00017373,2]
[404417024,1770121845483,-917.0,0.00017373,2]
[404417025,1770121845492,-1205.0,0.00017373,2]
[404417026,1770121845502,-1410.0,0.00017373,2]
[404417027,1770121845512,-625.826,0.00017373,2]
[404417028,1770121845521,-3481.0,0.00017373,2]
[404417029,1770121845530,-1500.0,0.000174,2]
[404417030,1770121845540,-346.92554585,0.00017406,2]
[404417031,1770121845549,-747.8093786,0.00017407,2]
[404417032,1770121845558,-599.60298507,0.00017407,2]
[404417033,1770121845568,-209.40437684,0.00017408,2]
[404417034,1770121845577,-200.0,0.00017408,2]
[404417035,1770121845587,-1265.13779333,0.00017425,2]
[404417036,1770121845596,-1265.13779333,0.00017479,2]
[404417037,1770121845606,-160.0,0.000175,7]
[404417038,1770121845615,-52248.952038,0.000175,3]
[404417039,1770121845624,-160.0,0.000175,3]
[404417040,1770121845633,-46533.52353158,0.000175,2]
[404417041,1770121845643,-800.0,0.00017534,7]
[404417042,1770121845652,-1000.0,0.00017534,2]
[404417043,1770121845662,-1265.13779333,0.00017562,2]
[404417044,1770121845672,-1500.0,0.000176,2]
[404417045,1770121845684,-1200.0,0.000176,6]
[404417046,1770121845694,-293.9372811,0.0001764,2]
[404417047,1770121845703,-2836.0,0.0001768,2]
[404417048,1770121845712,-839.0,0.00017682,2]
[404417049,1770121845722,-1200.0,0.000177,6]
[404417050,1770121845731,-5888.0,0.00017706,2]
[404417051,1770121845741,-1000.0,0.00017709,2]
[404417052,1770121845752,-5888.0,0.00017739,2]
[404417053,1770121845762,-442.0,0.00017753,2]
[404417054,1770121845771,-3617.579,0.00017774,2]
[404417055,1770121845780,-347.312,0.00017774,2]
[404417056,1770121845790,-421.0,0.00017783,2]
[404417057,1770121845799,-1500.0,0.000178,2]
[404417058,1770121845808,-1200.0,0.000178,6]
[404417059,1770121845818,-442.0,0.00017805,2]
[404417060,1770121845827,-1000.0,0.00017808,2]
[404417061,1770121845836,-2000.0,0.0001782,2]
[404417062,1770121845846,-2000.0,0.0001782,2]
[404417063,1770121845855,-2000.0,0.0001782,2]
[404417064,1770121845865,-2000.0,0.0001782,2]
[404417065,1770121845874,-421.0,0.00017829,2]
[404417066,1770121845883,-1000.0,0.00017837,2]
[404417067,1770121845893,-1000.0,0.00017837,2]
[404417068,1770121845902,-1000.0,0.00017837,2]
[404417069,1770121845912,-1000.0,0.00017837,2]
[404417070,1770121845921,-1000.0,0.00017837,2]
[404417071,1770121845931,-1000.0,0.00017837,2]
[404417072,1770121845940,-505.0,0.00017848,2]
[404417073,1770121845950,-200.0,0.00017855,2]
[404417074,1770121845959,-200.0,0.00017856,2]
[404417075,1770121845968,-421.0,0.00017874,2]
[404417076,1770121845977,-25000.0,0.00017891,3]
[404417077,1770121845987,-151.0,0.00017897,2]
[404417078,1770121845996,-505.0,0.00017899,2]
[404417079,1770121846006,-23848.97606714,0.000179,3]
[404417081,1770121846020,-5000.0,0.000179,2]
[404417082,1770121846029,-2736.91844369,0.000179,2]
[404417083,1770121846039,-25000.0,0.000179,3]
[404417084,1770121846049,-2091.44994305,0.000179,2]
[404417085,1770121846058,-160.0,0.000179,3]
[404417086,1770121846068,-23106.24832845,0.000179,3]
[404417087,1770121846078,-1970.0,0.000179,6]
[404417088,1770121846087,-2454.46217317,0.000179,2]
[404417089,1770121846097,-1223.52848545,0.000179,2]
[404417090,1770121846107,-18385.0,0.000179,2]
[404417091,1770121846117,-562.0,0.0001791,2]
[404417092,1770121846126,-505.0,0.0001792,2]
[404417093,1770121846135,-169.0,0.00017928,2]
[404417094,1770121846146,-200.0,0.00017937,2]
[404417095,1770121846156,-150.0,0.00017947,2]
[404417096,1770121846165,-421.0,0.00017955,2]
[404417097,1770121846175,-217.15233878,0.00017956,2]
[404417098,1770121846185,-200.0,0.00017956,2]
[404417099,1770121846195,-379.0,0.00017964,2]
[404417100,1770121846205,-421.0,0.00017964,2]
[404417101,1770121846214,-150.03464931,0.00017982,2]
[404417102,1770121846224,-500.0,0.00017982,2]
[404417103,1770121846234,-2888.05336964,0.0001799,3]
[404417104,1770121846243,-6635.2220609,0.0001799,2]
[404417105,1770121846253,-151.0,0.00017997,2]
[404417106,1770121846262,-500.0,0.00017998,2]
[404417107,1770121846271,-558.31479011,0.00017998,2]
[404417108,1770121846282,-361.84102799,0.00017999,2]
[404417109,1770121846291,-341.83713414,0.00017999,2]
[404417110,1770121846301,-313.9472948,0.00017999,2]
[404417111,1770121846310,-300.0,0.00017999,2]
[404417112,1770121846320,-1102.5540976,0.00017999,2]
[404417113,1770121846329,-300.0,0.00017999,2]
[404417114,1770121846338,-300.0,0.00017999,2]
[404417115,1770121846348,-300.0,0.00017999,2]
[404417116,1770121846358,-23789.8985945,0.00017999,2]
[404417117,1770121846367,-779785.4170169,0.00017999,2]
[404417118,1770121846376,-2099321.08226718,0.00018,2]
[404417119,1770121846386,-2000.88772904,0.00018,2]
[404417120,1770121846396,-151.61,0.00018,2]
[404417121,1770121846406,-1541246.99699739,0.00018,2]
[404417122,1770121846494,-1392.10538075,0.00018,2]
[404417123,1770121846517,-151.0,0.00013254,2]
[404417124,1770121846527,-369.33046191,0.00018,2]
[404417125,1770121846542,-412.8989822,0.00018,2]
[404417126,1770121847073,-7143.62059297,0.00012524,2]
[404417127,1770122034335,150.0,1e-05,2]
[404417137,1770122771902,-500.0,9.035e-05,2]
[404417138,1770122771924,-500.0,9.133e-05,2]
[404417139,1770122771946,-500.0,9.133e-05,2]
[404417140,1770122771969,-250.0,9.251e-05,2]
[404417141,1770122771992,-250.0,9.336e-05,2]
[404417142,1770122772013,-250.0,9.369e-05,2]
[404417143,1770122772036,-300.0,9.369e-05,2]
[404417144,1770122772059,-1200.0,9.369e-05,2]
[404417145,1770122772079,-300.0,9.369e-05,2]
[404417146,1770122772101,-3617.579,9.37e-05,2]
[404417147,1770122772122,-347.312,9.37e-05,2]
[404417148,1770122772143,-1000.0,9.393e-05,2]
[404417149,1770122772164,-227.0,9.393e-05,2]
[404417150,1770122772185,-151.0,9.458e-05,2]
[404417151,1770122772205,-150.0,9.459e-05,2]
[404417152,1770122772230,-219.81093593,9.46e-05,2]
[404417153,1770122772252,-500.0,9.46e-05,2]
[404417154,1770122772273,-312.04779638,9.46e-05,2]
[404417155,1770122772294,-500.0,9.46e-05,2]
[404417156,1770122772316,-500.0,9.46e-05,2]
[404417157,1770122772337,-500.0,9.46e-05,2]
[404417158,1770122772359,-246.74331867,9.46e-05,2]
[404417159,1770122772383,-500.0,9.46e-05,2]
[404417160,1770122772408,-500.0,9.46e-05,2]
[404417161,1770122772433,-500.0,9.46e-05,2]
[404417162,1770122772457,-500.0,9.46e-05,2]
[404417163,1770122772482,-385.70812299,9.46e-05,2]
[404417164,1770122772509,-5292.79882603,9.461e-05,2]
[404417169,1770123032362,-600.0,8.7e-05,3]
[404417170,1770123032375,-1300.0,8.8e-05,3]
[404417171,1770123032386,-1900.0,8.9e-05,3]
[404417172,1770123032398,-2600.0,9e-05,3]
[404417173,1770123032409,-61542.61000504,9.133e-05,2]
[404417174,1770123032421,-500.0,9.133e-05,2]
[404417175,1770123032432,-500.0,9.133e-05,2]
[404417176,1770123032444,-287.0,9.259e-05,2]
[404417177,1770123032455,-1200.0,9.259e-05,2]
[404417178,1770123032467,-15531.77679671,9.26e-05,2]
[404417179,1770123032481,-27901.90882151,9.26e-05,2]
[404417180,1770123032495,-14889.48810153,9.26e-05,2]
[404417181,1770123032517,-1014.31929586,9.26e-05,2]
[404417182,1770123032542,-1931.43592063,9.26e-05,2]
[404417183,1770123032566,-397.33497739,9.26e-05,2]
[404417184,1770123032581,-3794.84900764,9.26e-05,2]
[404417198,1770123038443,-324.59515465,9.259e-05,2]
[404417199,1770123038453,-153.86765515,9.259e-05,2]
[404417200,1770123038462,-500.0,9.259e-05,2]
[404417201,1770123038472,-222.72032307,9.259e-05,2]
[404417202,1770123038482,-500.0,9.259e-05,2]
[404417203,1770123038493,-500.0,9.259e-05,2]
[404417204,1770123038502,-1552.0137237,9.26e-05,2]
[404417205,1770123038518,-2259.8128437,9.26e-05,2]
[404417206,1770123038530,-31391.16939244,9.26e-05,2]
[404417207,1770123038564,-16972.94042967,9.26e-05,2]
[404417208,1770123038575,-1777.0,9.26e-05,2]
[404417209,1770123038609,-880585.95068922,9.26e-05,2]
[404417210,1770123038619,-151.0,9.357e-05,2]
[404417211,1770123038628,-151.0,9.357e-05,2]
[404417212,1770123038638,-150.0,9.359e-05,2]
[404417213,1770123038648,-300.0,9.359e-05,2]
[404417214,1770123038657,-3500000.0,9.36e-05,2]
[404417215,1770123038666,-4122.6247,9.361e-05,2]
[404417216,1770123038675,-89306.5331,9.361e-05,2]
[404417217,1770123038685,-250.0,9.459e-05,2]
[404417218,1770123038694,-1000.0,9.46e-05,2]
[404417219,1770123038704,-2544.7096,9.461e-05,2]
[404417220,1770123038714,-250.0,9.48e-05,2]
[404417221,1770123038723,-216.69,9.485e-05,2]
[404417222,1770123038734,-6484.12,9.485e-05,2]
[404417223,1770123038743,-150.99,9.485e-05,2]
[404417224,1770123038753,-9999.99,9.485e-05,2]
[404417225,1770123038762,-9999.99,9.485e-05,2]
[404417226,1770123038771,-299.99,9.485e-05,2]
[404417227,1770123038781,-999.99,9.485e-05,2]
[404417228,1770123038790,-150.99,9.485e-05,2]
[404417229,1770123038799,-617.47,9.534e-05,2]
[404417230,1770123038808,-10000.0,9.561e-05,2]
[404417231,1770123038818,-1852.42,9.758e-05,2]
[404417232,1770123038828,-10000.02,9.834e-05,2]
[404417233,1770123038837,-193.0,9.939e-05,2]
[404417234,1770123038847,-717.88,0.0001,2]
[404417235,1770123038856,-269.09178599,0.0001,2]
[404417236,1770123038866,-151.0,0.0001,2]
[404417237,1770123038878,-151.0,0.0001,2]
[404417238,1770123038887,-151.0,0.0001,2]
[404417240,1770123038896,-151.0,0.0001,2]
[404417242,1770123038906,-151.0,0.0001,2]
[404417244,1770123038916,-151.0,0.0001,2]
[404417246,1770123038925,-151.0,0.0001,2]
[404417248,1770123038934,-151.0,0.0001,2]
[404417250,1770123038944,-151.0,0.0001,2]
[404417252,1770123038953,-151.0,0.0001,2]
[404417255,1770123038962,-500.0,0.0001,2]
[404417256,1770123038972,-151.0,0.0001,2]
[404417259,1770123038982,-500.0,0.0001,2]
[404417261,1770123038991,-151.0,0.0001,2]
[404417262,1770123039001,-500.0,0.0001,2]
[404417265,1770123039010,-151.0,0.0001,2]
[404417267,1770123039020,-500.0,0.0001,2]
[404417268,1770123039029,-151.0,0.0001,2]
[404417270,1770123039039,-500.0,0.0001,2]
[404417272,1770123039048,-151.0,0.0001,2]
[404417274,1770123039058,-151.0,0.0001,2]
[404417276,1770123039071,-500.0,0.0001,2]
[404417279,1770123039080,-151.0,0.0001,2]
[404417281,1770123039090,-500.0,0.0001,2]
[404417283,1770123039099,-151.0,0.0001,2]
[404417284,1770123039109,-500.0,0.0001,2]
[404417287,1770123039119,-151.0,0.0001,2]
[404417289,1770123039128,-500.0,0.0001,2]
[404417291,1770123039139,-151.0,0.0001,2]
[404417293,1770123039148,-500.0,0.0001,2]
[404417295,1770123039156,-500.0,0.0001,2]
[404417297,1770123039166,-150.01306598,0.0001,2]
[404417298,1770123039175,-500.0,0.0001,2]
[404417300,1770123039185,-151.0,0.0001,2]
[404417302,1770123039194,-500.0,0.0001,2]
[404417304,1770123039205,-151.0,0.0001,2]
[404417306,1770123039214,-500.0,0.0001,2]
[404417309,1770123039224,-151.0,0.0001,2]
[404417310,1770123039234,-500.0,0.0001,2]
[404417313,1770123039243,-151.0,0.0001,2]
[404417315,1770123039253,-500.0,0.0001,2]
[404417316,1770123039263,-151.0,0.0001,2]
[404417319,1770123039272,-500.0,0.0001,2]
[404417321,1770123039281,-151.0,0.0001,2]
[404417323,1770123039291,-500.0,0.0001,2]
[404417325,1770123039300,-151.0,0.0001,2]
[404417327,1770123039309,-500.0,0.0001,2]
[404417329,1770123039319,-151.0,0.0001,2]
[404417331,1770123039328,-500.0,0.0001,2]
[404417333,1770123039338,-151.0,0.0001,2]
[404417335,1770123039348,-500.0,0.0001,2]
[404417337,1770123039358,-151.0,0.0001,2]
[404417339,1770123039367,-500.0,0.0001,2]
[404417341,1770123039376,-151.0,0.0001,2]
[404417343,1770123039386,-3200.0,0.0001,3]
[404417345,1770123039395,-164.01557148,0.0001,2]
[404417347,1770123039404,-164.01557148,0.0001,2]
[404417349,1770123039413,-169.96770097,0.0001,2]
[404417351,1770123039423,-1680.0,0.00010185,2]
[404417353,1770123039432,-200.0,0.00010247,2]
[404417355,1770123039441,-717.88,0.00010274,2]
[404417357,1770123039452,-255.0,0.00010295,2]
[404417359,1770123039463,-287.0,0.00010295,2]
[404417361,1770123039472,-4339.8,0.00010364,2]
[404417363,1770123039481,-33292.3487,0.00010364,2]
[404417365,1770123039491,-1000.0,0.00010364,2]
[404417367,1770123039500,-300.0,0.00010404,2]
[404417369,1770123039509,-250.0,0.00010404,2]
[404417371,1770123039518,-19170.31,0.00010433,2]
[404417373,1770123039527,-717.88,0.00010548,2]
[404417375,1770123039537,-1000.0,0.00010567,2]
[404417377,1770123039545,-717.88,0.00010822,2]
[404417379,1770123039556,-717.88,0.00011096,2]
[404417381,1770123039571,-5728.15563805,0.00011099,2]
[404417383,1770123039582,-5728.15563805,0.00011099,2]
[404417385,1770123039592,-5728.15563805,0.00011099,2]
[404417387,1770123039601,-50764.21893861,0.00011099,2]
[404417389,1770123039611,-50764.21893859,0.00011099,2]
[404417391,1770123039620,-50764.21893859,0.00011099,2]
[404417393,1770123039629,-150.01306598,0.00011118,2]
[404417395,1770123039641,-2351.0,0.00011203,2]
[404417397,1770123039650,-18103.07,0.00011233,2]
[404417399,1770123039659,-475.53,0.00011251,2]
[404417401,1770123039669,-433.0,0.00011324,2]
[404417403,1770123039678,-717.88,0.0001137,2]
[404417405,1770123039688,-500.0,0.00011479,2]
[404417407,1770123039698,-250.0,0.00011496,2]
[404417409,1770123039707,-717.88,0.00011644,2]
[404417411,1770123039716,-50764.21893859,0.00011687,2]
[404417413,1770123039726,-5728.15563805,0.00011687,2]
[404417415,1770123039737,-1000.0,0.00011741,2]
[404417417,1770123039747,-475.53,0.00011876,2]
[404417418,1770123039756,-717.88,0.00011918,2]
[404417420,1770123039765,-382.17,0.00012144,2]
[404417422,1770123039775,-717.88,0.00012192,2]
[404417425,1770123039784,-150.01306598,0.00012235,2]
[404417427,1770123039793,-3292.0,0.00012323,2]
[404417429,1770123039803,-736.0,0.00012456,2]
[404417431,1770123039813,-50764.21893859,0.00012462,2]
[404417433,1770123039821,-5728.15563805,0.00012462,2]
[404417435,1770123039830,-717.88,0.00012466,2]
[404417437,1770123039840,-475.53,0.00012501,2]
[404417439,1770123039849,-717.88,0.0001274,2]
[404417441,1770123039859,-1000.0,0.00012915,2]
[404417443,1770123039868,-717.88,0.00013014,2]
[404417445,1770123039878,-475.53,0.00013126,2]
[404417446,1770123039888,-50764.21893859,0.00013237,2]
[404417449,1770123039899,-5728.15563805,0.00013237,2]
[404417451,1770123039908,-1212.20991938,0.00013279,2]
[404417453,1770123039918,-3199.04115627,0.00013279,2]
[404417455,1770123039929,-5643.48779412,0.00013279,2]
[404417457,1770123039938,-717.88,0.00013288,2]
[404417459,1770123039947,-4609.0,0.00013556,2]
[404417461,1770123039957,-717.88,0.00013562,2]
[404417463,1770123039967,-269.09178599,0.00013631,2]
[404417465,1770123039976,-500.0,0.00013698,2]
[404417467,1770123039985,-189.27951938,0.00013698,2]
[404417469,1770123039995,-500.0,0.00013698,2]
[404417471,1770123040005,-501.81901913,0.00013698,2]
[404417473,1770123040015,-500.0,0.00013698,2]
[404417475,1770123040026,-500.0,0.00013698,2]
[404417477,1770123040035,-500.0,0.00013698,2]
[404417479,1770123040045,-438.97921379,0.00013698,2]
[404417481,1770123040054,-452.02134495,0.00013698,2]
[404417483,1770123040069,-199.38200897,0.00013698,2]
[404417485,1770123040078,-500.0,0.00013698,2]
[404417487,1770123040087,-500.0,0.00013698,2]
[404417489,1770123040097,-500.0,0.00013698,2]
[404417492,1770123040109,-500.0,0.00013698,2]
[404417495,1770123040118,-378.56522147,0.00013698,2]
[404417497,1770123040127,-500.0,0.00013698,2]
[404417499,1770123040138,-500.0,0.00013698,2]
[404417500,1770123040147,-500.0,0.00013698,2]
[404417503,1770123040157,-500.0,0.00013698,2]
[404417505,1770123040166,-500.0,0.00013698,2]
[404417507,1770123040175,-500.0,0.00013698,2]
[404417508,1770123040184,-500.0,0.00013698,2]
[404417510,1770123040194,-500.0,0.00013698,2]
[404417512,1770123040203,-500.0,0.00013698,2]
[404417514,1770123040213,-222.83714718,0.00013698,2]
[404417517,1770123040223,-500.0,0.00013698,2]
[404417519,1770123040236,-500.0,0.00013698,2]
[404417521,1770123040246,-500.0,0.00013698,2]
[404417523,1770123040255,-500.0,0.00013698,2]
[404417525,1770123040265,-500.0,0.00013698,2]
[404417527,1770123040276,-340.45778603,0.00013698,2]
[404417529,1770123040285,-500.0,0.00013698,2]
[404417531,1770123040295,-500.0,0.00013698,2]
[404417533,1770123040306,-439.60873549,0.00013698,2]
[404417535,1770123040316,-500.0,0.00013698,2]
[404417537,1770123040325,-500.0,0.00013698,2]
[404417539,1770123040335,-500.0,0.00013698,2]
[404417541,1770123040345,-500.0,0.00013698,2]
[404417544,1770123040355,-545.58231824,0.00013698,2]
[404417546,1770123040364,-500.0,0.00013698,2]
[404417548,1770123040374,-500.0,0.00013698,2]
[404417550,1770123040384,-500.0,0.00013698,2]
[404417552,1770123040400,-500.0,0.00013698,2]
[404417554,1770123040421,-500.0,0.00013698,2]
[404417556,1770123040441,-552.61203619,0.00013698,2]
[404417558,1770123040460,-558.31479011,0.00013698,2]
[404417560,1770123040480,-500.0,0.00013698,2]
[404417561,1770123040495,-500.0,0.00013698,2]
[404417564,1770123040505,-500.0,0.00013698,2]
[404417566,1770123040516,-500.0,0.00013698,2]
[404417568,1770123040527,-500.0,0.00013698,2]
[404417569,1770123040538,-500.0,0.00013698,2]
[404417571,1770123040549,-500.0,0.00013698,2]
[404417573,1770123040560,-500.0,0.00013698,2]
[404417575,1770123040571,-371.76186134,0.00013698,2]
[404417577,1770123040582,-500.0,0.00013698,2]
[404417579,1770123040593,-509.06540724,0.00013698,2]
[404417581,1770123040604,-7243.61,0.00013699,2]
[404417584,1770123040614,-500.0,0.000137,2]
[404417585,1770123040627,-260.20893212,0.000137,2]
[404417588,1770123040639,-500.0,0.000137,2]
[404417590,1770123040651,-500.0,0.000137,2]
[404417592,1770123040660,-500.0,0.000137,2]
[404417594,1770123040672,-500.0,0.000137,2]
[404417596,1770123040683,-930.0,0.00013701,2]
[404417598,1770123040693,-475.53,0.00013751,2]
[404417600,1770123040703,-717.88,0.00013836,2]
[404417602,1770123040712,-8442.32022516,0.00013929,2]
[404417604,1770123040723,-50764.21893859,0.00014012,2]
[404417606,1770123040733,-5728.15563805,0.00014012,2]
[404417608,1770123040742,-1000.0,0.00014089,2]
[404417610,1770123040751,-717.88,0.0001411,2]
[404417612,1770123040761,-160.0,0.00014225,2]
[404417614,1770123040770,-1000.0,0.00014248,2]
[404417616,1770123040779,-1000.0,0.00014248,2]
[404417618,1770123040789,-500.0,0.00014248,2]
[404417620,1770123040799,-475.53,0.00014377,2]
[404417622,1770123040808,-717.88,0.00014384,2]
[404417624,1770123040817,-717.88,0.00014658,2]
[404417626,1770123040827,-50764.21893859,0.00014788,2]
[404417627,1770123040837,-5728.15563805,0.00014788,2]
[404417628,1770123040846,-495.7739334,0.00014796,2]
[404417629,1770123040856,-369.98194845,0.00014796,2]
[404417630,1770123040864,-6453.0,0.00014911,2]
[404417649,1770123041069,-717.88,0.00014932,2]